[Event "*** Titled Tuesday Blitz"]
[Site "Chess.com"]
[Date "2020.12.29"]
[Round "9"]
[White "Gulkov_Igor"]
[Black "Leo_C"]
[Result "1-0"]
[WhiteElo "2544"]
[BlackElo "2377"]
[TimeControl "180+1"]
[EndTime "11:46:27 PST"]
[Termination "Gulkov_Igor won on time"]

1. Nf3 {[%clk 0:03:00.9]} 1... d5 {[%clk 0:02:59.6]} 2. d4 {[%clk 0:02:59.8]}
2... Nf6 {[%clk 0:02:58.8]} 3. c4 {[%clk 0:02:59.2]} 3... c6 {[%clk 0:02:57.9]}
4. Nc3 {[%clk 0:02:58.2]} 4... e6 {[%clk 0:02:57.7]} 5. Bg5 {[%clk 0:02:57.1]}
5... h6 {[%clk 0:02:57.7]} 6. Bxf6 {[%clk 0:02:56.5]} 6... Qxf6 {[%clk 0:02:57]}
7. e3 {[%clk 0:02:56.9]} 7... Nd7 {[%clk 0:02:56.6]} 8. Rc1 {[%clk 0:02:56.8]}
8... g6 {[%clk 0:02:53.9]} 9. Bd3 {[%clk 0:02:56.7]} 9... dxc4 {[%clk
0:02:52.2]} 10. Bxc4 {[%clk 0:02:56.6]} 10... Bg7 {[%clk 0:02:52.3]} 11. O-O
{[%clk 0:02:56.7]} 11... O-O {[%clk 0:02:52.1]} 12. e4 {[%clk 0:02:57.1]} 12...
e5 {[%clk 0:02:51.8]} 13. d5 {[%clk 0:02:57.4]} 13... Nb6 {[%clk 0:02:51.5]} 14.
dxc6 {[%clk 0:02:57.5]} 14... bxc6 {[%clk 0:02:37.1]} 15. Bb3 {[%clk 0:02:50.6]}
15... Rd8 {[%clk 0:02:35.8]} 16. Qe2 {[%clk 0:02:49.9]} 16... Bg4 {[%clk
0:02:33.8]} 17. Na4 {[%clk 0:02:47.3]} 17... Rd4 {[%clk 0:02:15.7]} 18. Nc5
{[%clk 0:02:27.8]} 18... Rad8 {[%clk 0:02:04]} 19. Qe3 {[%clk 0:02:22.5]} 19...
Bxf3 {[%clk 0:01:58.6]} 20. Qxf3 {[%clk 0:02:22.3]} 20... Qxf3 {[%clk
0:01:51.2]} 21. gxf3 {[%clk 0:02:21.8]} 21... Rd2 {[%clk 0:01:40.7]} 22. Rfd1
{[%clk 0:02:19]} 22... Bf8 {[%clk 0:01:31.7]} 23. Nb7 {[%clk 0:01:59.4]} 23...
Rxd1+ {[%clk 0:01:29.5]} 24. Rxd1 {[%clk 0:01:45.8]} 24... Rxd1+ {[%clk
0:01:27.3]} 25. Bxd1 {[%clk 0:01:45.5]} 25... Bb4 {[%clk 0:01:07.3]} 26. Bb3
{[%clk 0:01:40.1]} 26... Kf8 {[%clk 0:01:01.3]} 27. Nd8 {[%clk 0:01:38.3]} 27...
c5 {[%clk 0:00:52.8]} 28. Nc6 {[%clk 0:01:37.7]} 28... c4 {[%clk 0:00:41.1]} 29.
Bc2 {[%clk 0:01:24.6]} 29... c3 {[%clk 0:00:35.6]} 30. bxc3 {[%clk 0:01:22.7]}
30... Bxc3 {[%clk 0:00:35.3]} 31. Nxa7 {[%clk 0:01:21.6]} 31... Nc4 {[%clk
0:00:33.1]} 32. Nb5 {[%clk 0:01:15.8]} 32... Bb4 {[%clk 0:00:31.8]} 33. Bb3
{[%clk 0:01:10.7]} 33... Nd2 {[%clk 0:00:30.4]} 34. Kg2 {[%clk 0:01:10]} 34...
Nb1 {[%clk 0:00:27.9]} 35. Nc7 {[%clk 0:00:58.8]} 35... Bc5 {[%clk 0:00:23.2]}
36. a4 {[%clk 0:00:52.1]} 36... Nd2 {[%clk 0:00:22.3]} 37. Ba2 {[%clk
0:00:45.8]} 37... h5 {[%clk 0:00:15.8]} 38. a5 {[%clk 0:00:42.5]} 38... Ke7
{[%clk 0:00:15]} 39. a6 {[%clk 0:00:38.7]} 39... h4 {[%clk 0:00:13.1]} 40. h3
{[%clk 0:00:35]} 40... g5 {[%clk 0:00:09.7]} 41. Nb5 {[%clk 0:00:34]} 41... g4
{[%clk 0:00:10]} 42. fxg4 {[%clk 0:00:28]} 42... Nxe4 {[%clk 0:00:08.9]} 43. a7
{[%clk 0:00:28]} 43... Bxa7 {[%clk 0:00:09]} 44. Nxa7 {[%clk 0:00:28.2]} 44...
Nd6 {[%clk 0:00:09]} 45. Nc6+ {[%clk 0:00:27.6]} 45... Kf6 {[%clk 0:00:08.6]}
46. Bd5 {[%clk 0:00:26.4]} 46... Nb5 {[%clk 0:00:08]} 47. Nb4 {[%clk 0:00:23.1]}
47... Nc3 {[%clk 0:00:07.6]} 48. Bc6 {[%clk 0:00:21.9]} 48... Kg5 {[%clk
0:00:07.3]} 49. Nd3 {[%clk 0:00:20.2]} 49... f6 {[%clk 0:00:05.4]} 50. Nc5
{[%clk 0:00:19.4]} 50... Ne2 {[%clk 0:00:05.1]} 51. Ne6+ {[%clk 0:00:16.7]}
51... Kg6 {[%clk 0:00:04.7]} 52. Kf1 {[%clk 0:00:14.9]} 52... Nc3 {[%clk
0:00:03.9]} 53. Ke1 {[%clk 0:00:14.9]} 53... f5 {[%clk 0:00:03.7]} 54. Kd2
{[%clk 0:00:11.7]} 54... Na2 {[%clk 0:00:03.4]} 55. Nc5 {[%clk 0:00:08.6]} 55...
Nb4 {[%clk 0:00:03.2]} 56. Bb7 {[%clk 0:00:07.5]} 56... fxg4 {[%clk 0:00:02.9]}
57. hxg4 {[%clk 0:00:08]} 57... Kg5 {[%clk 0:00:03.1]} 58. Ke2 {[%clk
0:00:08.3]} 58... Kxg4 {[%clk 0:00:02.5]} 59. Bc8+ {[%clk 0:00:08.5]} 59... Kf4
{[%clk 0:00:02.5]} 60. Ne6+ {[%clk 0:00:07.2]} 60... Kf5 {[%clk 0:00:02.1]} 61.
Nc5+ {[%clk 0:00:06.9]} 61... Kf4 {[%clk 0:00:01.9]} 62. Ne6+ {[%clk 0:00:06.9]}
62... Kf5 {[%clk 0:00:02.3]} 63. Kf1 {[%clk 0:00:06.5]} 63... Ke4 {[%clk
0:00:01.6]} 64. Ng5+ {[%clk 0:00:05.3]} 64... Kf4 {[%clk 0:00:01.6]} 65. Nh3+
{[%clk 0:00:05.1]} 65... Ke4 {[%clk 0:00:02.4]} 66. Kg2 {[%clk 0:00:05]} 66...
Kd4 {[%clk 0:00:02.8]} 67. Bb7 {[%clk 0:00:05.2]} 67... Nd3 {[%clk 0:00:03.2]}
68. Ng5 {[%clk 0:00:05.1]} 68... e4 {[%clk 0:00:03.7]} 69. Nxe4 {[%clk
0:00:04.7]} 69... Nf4+ {[%clk 0:00:04]} 70. Kf3 {[%clk 0:00:05.1]} 70... h3
{[%clk 0:00:04.2]} 71. Ng3 {[%clk 0:00:04.6]} 71... Ne6 {[%clk 0:00:03.5]} 72.
Kg4 {[%clk 0:00:04.7]} 72... h2 {[%clk 0:00:03.6]} 73. Kh3 {[%clk 0:00:03.6]}
73... Nc5 {[%clk 0:00:03.6]} 74. Bf3 {[%clk 0:00:02.7]} 74... Ne4 {[%clk
0:00:03.5]} 75. Nxe4 {[%clk 0:00:02.4]} 75... h1=Q+ {[%clk 0:00:03.2]} 76. Bxh1
{[%clk 0:00:02.1]} 1-0

[Event "*** Titled Tuesday Blitz"]
[Site "Chess.com"]
[Date "2020.12.29"]
[Round "9"]
[White "gahryman"]
[Black "Natalya_Buksa"]
[Result "1-0"]
[WhiteElo "2686"]
[BlackElo "2544"]
[TimeControl "180+1"]
[EndTime "11:46:37 PST"]
[Termination "gahryman won by resignation"]

1. e4 {[%clk 0:03:00.9]} 1... c5 {[%clk 0:02:58.3]} 2. Nc3 {[%clk 0:02:57.3]}
2... Nc6 {[%clk 0:02:58]} 3. Bb5 {[%clk 0:02:56.9]} 3... Nd4 {[%clk 0:02:57.9]}
4. Nf3 {[%clk 0:02:57.5]} 4... Nxb5 {[%clk 0:02:54.2]} 5. Nxb5 {[%clk
0:02:57.7]} 5... d6 {[%clk 0:02:54.8]} 6. c4 {[%clk 0:02:57.3]} 6... Nf6 {[%clk
0:02:48.3]} 7. Nc3 {[%clk 0:02:55.6]} 7... Bg4 {[%clk 0:02:45.8]} 8. h3 {[%clk
0:02:50]} 8... Bxf3 {[%clk 0:02:45.6]} 9. Qxf3 {[%clk 0:02:49.6]} 9... g6 {[%clk
0:02:46.1]} 10. O-O {[%clk 0:02:46]} 10... Bg7 {[%clk 0:02:46]} 11. d3 {[%clk
0:02:46.9]} 11... O-O {[%clk 0:02:45.3]} 12. Bg5 {[%clk 0:02:38.3]} 12... h6
{[%clk 0:02:37.3]} 13. Bh4 {[%clk 0:02:38]} 13... Nd7 {[%clk 0:02:24.1]} 14. Nd5
{[%clk 0:02:37]} 14... g5 {[%clk 0:02:19.5]} 15. Bg3 {[%clk 0:02:36.6]} 15...
Ne5 {[%clk 0:01:53.1]} 16. Qe2 {[%clk 0:02:22.7]} 16... e6 {[%clk 0:01:35.2]}
17. Nc3 {[%clk 0:02:22.1]} 17... Nc6 {[%clk 0:01:23.9]} 18. f4 {[%clk
0:02:18.6]} 18... gxf4 {[%clk 0:01:24.1]} 19. Bxf4 {[%clk 0:02:18.6]} 19... Kh7
{[%clk 0:01:24.5]} 20. Qh5 {[%clk 0:02:15.5]} 20... Nd4 {[%clk 0:01:24.3]} 21.
Rf2 {[%clk 0:02:15.2]} 21... e5 {[%clk 0:01:21.1]} 22. Be3 {[%clk 0:02:12]}
22... f5 {[%clk 0:01:19.7]} 23. Nd5 {[%clk 0:02:00.6]} 23... f4 {[%clk
0:01:14.9]} 24. Bxd4 {[%clk 0:02:00.7]} 24... cxd4 {[%clk 0:01:15.4]} 25. Raf1
{[%clk 0:01:55.4]} 25... Qe8 {[%clk 0:01:13.8]} 26. Qxe8 {[%clk 0:01:53.3]}
26... Raxe8 {[%clk 0:01:13.6]} 27. g3 {[%clk 0:01:53.4]} 27... fxg3 {[%clk
0:00:40.8]} 28. Rxf8 {[%clk 0:01:51.8]} 28... Rxf8 {[%clk 0:00:33.9]} 29. Rxf8
{[%clk 0:01:51.6]} 29... Bxf8 {[%clk 0:00:34.8]} 30. Kg2 {[%clk 0:01:52.1]}
30... Kg6 {[%clk 0:00:35.1]} 31. Kxg3 {[%clk 0:01:52.5]} 31... h5 {[%clk
0:00:29.6]} 32. b4 {[%clk 0:01:48.9]} 32... Bh6 {[%clk 0:00:29]} 33. b5 {[%clk
0:01:48.1]} 33... Bd2 {[%clk 0:00:28.4]} 34. a4 {[%clk 0:01:44.7]} 34... Be1+
{[%clk 0:00:27.5]} 35. Kf3 {[%clk 0:01:44.1]} 35... Kf7 {[%clk 0:00:27.7]} 36.
Ke2 {[%clk 0:01:34.9]} 36... Ba5 {[%clk 0:00:26.3]} 37. Kf2 {[%clk 0:01:32.1]}
37... Ke6 {[%clk 0:00:25.1]} 38. Kg2 {[%clk 0:01:18.4]} 38... Be1 {[%clk
0:00:23.9]} 39. Kf3 {[%clk 0:01:09.6]} 39... Ba5 {[%clk 0:00:24.3]} 40. Ke2
{[%clk 0:01:05.2]} 40... Kf7 {[%clk 0:00:24.3]} 41. Kd1 {[%clk 0:00:59.4]} 41...
Kg6 {[%clk 0:00:21.6]} 42. Ne7+ {[%clk 0:00:56]} 42... Kg5 {[%clk 0:00:21.4]}
43. Nf5 {[%clk 0:00:56.9]} 43... Bb4 {[%clk 0:00:21.2]} 44. Ke2 {[%clk
0:00:56.4]} 44... Kf4 {[%clk 0:00:21.3]} 45. Kf2 {[%clk 0:00:56.6]} 45... Bc5
{[%clk 0:00:20.2]} 46. Ng7 {[%clk 0:00:47.4]} 46... Kg5 {[%clk 0:00:20.4]} 47.
Ne6+ {[%clk 0:00:46]} 47... Kf6 {[%clk 0:00:20.9]} 48. Nd8 {[%clk 0:00:45.8]}
48... b6 {[%clk 0:00:18]} 49. Nc6 {[%clk 0:00:45.9]} 49... Kg5 {[%clk 0:00:17]}
50. Nxa7 {[%clk 0:00:44]} 50... Bb4 {[%clk 0:00:16]} 51. Nc8 {[%clk 0:00:42.9]}
51... Bc5 {[%clk 0:00:16.2]} 52. Ne7 {[%clk 0:00:41.5]} 52... Bb4 {[%clk
0:00:15.9]} 53. Nd5 {[%clk 0:00:40.1]} 53... Ba5 {[%clk 0:00:16.1]} 54. Kg3
{[%clk 0:00:28.8]} 54... Be1+ {[%clk 0:00:15.4]} 55. Kf3 {[%clk 0:00:29.1]}
55... Ba5 {[%clk 0:00:15.9]} 56. Ne7 {[%clk 0:00:30]} 56... Kh4 {[%clk
0:00:15.5]} 57. Kg2 {[%clk 0:00:26.8]} 57... Bb4 {[%clk 0:00:14.5]} 58. a5
{[%clk 0:00:15.5]} 58... Bxa5 {[%clk 0:00:07.5]} 59. Nf5+ {[%clk 0:00:15.7]}
59... Kg5 {[%clk 0:00:07.1]} 60. Nxd6 {[%clk 0:00:16.6]} 60... Kf4 {[%clk
0:00:07.6]} 61. Kf2 {[%clk 0:00:16.3]} 61... Bd2 {[%clk 0:00:07.8]} 62. c5
{[%clk 0:00:14.9]} 62... bxc5 {[%clk 0:00:07.2]} 63. b6 {[%clk 0:00:15.3]} 63...
Ba5 {[%clk 0:00:07.7]} 64. b7 {[%clk 0:00:15.8]} 64... Bc7 {[%clk 0:00:07.9]}
65. Ne8 {[%clk 0:00:11.7]} 65... Bb8 {[%clk 0:00:07.6]} 66. Ng7 {[%clk
0:00:11.9]} 66... Kg5 {[%clk 0:00:06.6]} 67. Ne6+ {[%clk 0:00:11.9]} 67... Kh4
{[%clk 0:00:06.8]} 68. Nd8 {[%clk 0:00:12.8]} 68... Kxh3 {[%clk 0:00:06.9]} 69.
Nc6 {[%clk 0:00:12.7]} 69... Bc7 {[%clk 0:00:07.1]} 70. b8=Q {[%clk 0:00:12.9]}
70... Bxb8 {[%clk 0:00:07.4]} 71. Nxb8 {[%clk 0:00:13.8]} 71... c4 {[%clk
0:00:07.9]} 72. dxc4 {[%clk 0:00:13]} 72... d3 {[%clk 0:00:08.3]} 73. c5 {[%clk
0:00:12.3]} 73... d2 {[%clk 0:00:08.6]} 74. Ke2 {[%clk 0:00:12.7]} 74... Kg2
{[%clk 0:00:09.1]} 75. c6 {[%clk 0:00:12.2]} 75... h4 {[%clk 0:00:09.7]} 76. c7
{[%clk 0:00:12.6]} 76... h3 {[%clk 0:00:10.3]} 77. c8=Q {[%clk 0:00:12.9]} 77...
d1=Q+ {[%clk 0:00:10.6]} 78. Kxd1 {[%clk 0:00:12.5]} 78... h2 {[%clk 0:00:11.5]}
79. Qg4+ {[%clk 0:00:12.8]} 79... Kf2 {[%clk 0:00:11.8]} 80. Qh4+ {[%clk
0:00:12.7]} 80... Kg2 {[%clk 0:00:11.8]} 81. Ke2 {[%clk 0:00:13.1]} 81... h1=Q
{[%clk 0:00:11.6]} 82. Qxh1+ {[%clk 0:00:13.2]} 82... Kxh1 {[%clk 0:00:12.5]}
83. Kf3 {[%clk 0:00:14.1]} 83... Kh2 {[%clk 0:00:12.9]} 84. Nc6 {[%clk 0:00:15]}
84... Kh3 {[%clk 0:00:13.2]} 85. Nxe5 {[%clk 0:00:15.9]} 85... Kh4 {[%clk
0:00:13.6]} 86. Kf4 {[%clk 0:00:16.8]} 86... Kh5 {[%clk 0:00:14]} 87. Kf5 {[%clk
0:00:17.7]} 87... Kh6 {[%clk 0:00:14.7]} 88. Kf6 {[%clk 0:00:18.1]} 88... Kh7
{[%clk 0:00:15.2]} 89. Kf7 {[%clk 0:00:18.5]} 89... Kh6 {[%clk 0:00:15.4]} 90.
Nd7 {[%clk 0:00:19.4]} 90... Kg5 {[%clk 0:00:16.3]} 91. e5 {[%clk 0:00:20.3]}
91... Kf5 {[%clk 0:00:17]} 92. e6 {[%clk 0:00:21.2]} 1-0

[Event "*** Titled Tuesday Blitz"]
[Site "Chess.com"]
[Date "2020.12.29"]
[Round "9"]
[White "Vusatiuk_Vladimir"]
[Black "kleopl"]
[Result "0-1"]
[WhiteElo "2314"]
[BlackElo "2475"]
[TimeControl "180+1"]
[EndTime "11:46:50 PST"]
[Termination "kleopl won by resignation"]

1. d4 {[%clk 0:03:00.9]} 1... d6 {[%clk 0:02:58.7]} 2. c4 {[%clk 0:03:01]} 2...
e5 {[%clk 0:02:58.6]} 3. dxe5 {[%clk 0:03:00.7]} 3... dxe5 {[%clk 0:02:59.5]} 4.
Qxd8+ {[%clk 0:03:01.1]} 4... Kxd8 {[%clk 0:03:00.4]} 5. Nc3 {[%clk 0:03:00.3]}
5... c6 {[%clk 0:03:00.4]} 6. Nf3 {[%clk 0:02:59.9]} 6... f6 {[%clk 0:03:00]} 7.
e3 {[%clk 0:02:49.8]} 7... Be6 {[%clk 0:03:00]} 8. b3 {[%clk 0:02:45.9]} 8...
Nd7 {[%clk 0:02:55.6]} 9. Bb2 {[%clk 0:02:42.9]} 9... Kc7 {[%clk 0:02:55.5]} 10.
O-O-O {[%clk 0:02:42]} 10... a5 {[%clk 0:02:52.9]} 11. Rg1 {[%clk 0:02:31.7]}
11... h5 {[%clk 0:02:51.3]} 12. h3 {[%clk 0:02:31.3]} 12... h4 {[%clk
0:02:46.2]} 13. Bd3 {[%clk 0:02:21.5]} 13... Nc5 {[%clk 0:02:41.3]} 14. Bc2
{[%clk 0:02:19.9]} 14... Na6 {[%clk 0:02:37]} 15. Ne4 {[%clk 0:02:16.6]} 15...
Ne7 {[%clk 0:02:22]} 16. Ba3 {[%clk 0:02:11.5]} 16... Nf5 {[%clk 0:02:15]} 17.
Bxf8 {[%clk 0:02:09.9]} 17... Rhxf8 {[%clk 0:02:09.7]} 18. Kb2 {[%clk
0:02:10.4]} 18... g5 {[%clk 0:02:02.7]} 19. Kc3 {[%clk 0:02:09.1]} 19... Ne7
{[%clk 0:01:55.5]} 20. Rd6 {[%clk 0:01:37.6]} 20... Nc5 {[%clk 0:01:53.2]} 21.
Rgd1 {[%clk 0:01:15.8]} 21... Nxe4+ {[%clk 0:01:42.7]} 22. Bxe4 {[%clk
0:01:16.7]} 22... Bc8 {[%clk 0:01:29.5]} 23. Bc2 {[%clk 0:00:46.4]} 23... Nd5+
{[%clk 0:01:24.1]} 24. R1xd5 {[%clk 0:00:30.8]} 24... cxd5 {[%clk 0:01:23.6]}
25. Rxd5 {[%clk 0:00:31.7]} 25... Bd7 {[%clk 0:01:13.8]} 26. e4 {[%clk
0:00:20.8]} 26... Bc6 {[%clk 0:01:12.7]} 27. Rd2 {[%clk 0:00:20.4]} 27... Rad8
{[%clk 0:01:09.5]} 28. a3 {[%clk 0:00:20.5]} 28... Rxd2 {[%clk 0:01:03.2]} 29.
Nxd2 {[%clk 0:00:21.4]} 29... Rg8 {[%clk 0:01:00.9]} 30. f3 {[%clk 0:00:21.6]}
30... Bd7 {[%clk 0:00:58.9]} 31. Nf1 {[%clk 0:00:20.4]} 31... Be6 {[%clk
0:00:58.8]} 32. Ne3 {[%clk 0:00:20.4]} 32... Rd8 {[%clk 0:00:59.1]} 33. Bd3
{[%clk 0:00:20.7]} 33... Kb6 {[%clk 0:00:52.9]} 34. Bc2 {[%clk 0:00:19.9]} 34...
Kc5 {[%clk 0:00:51.2]} 35. Bd3 {[%clk 0:00:20.3]} 35... Rd7 {[%clk 0:00:41.3]}
36. Be2 {[%clk 0:00:20.7]} 36... Rd4 {[%clk 0:00:36.1]} 37. a4 {[%clk
0:00:19.2]} 37... Rd8 {[%clk 0:00:32.4]} 38. Bd3 {[%clk 0:00:19.5]} 38... Kd6
{[%clk 0:00:23.1]} 39. Bc2 {[%clk 0:00:19.6]} 39... Ke7 {[%clk 0:00:23.3]} 40.
Bd3 {[%clk 0:00:20.1]} 40... Kf7 {[%clk 0:00:21.9]} 41. Bc2 {[%clk 0:00:20.7]}
41... Bd7 {[%clk 0:00:18.9]} 42. Bd3 {[%clk 0:00:20.9]} 42... Bc6 {[%clk
0:00:19]} 43. Bc2 {[%clk 0:00:20.9]} 43... Rd6 {[%clk 0:00:19.4]} 44. Nf5 {[%clk
0:00:20.4]} 44... Rd8 {[%clk 0:00:17.4]} 45. Ne3 {[%clk 0:00:20.9]} 45... Bd7
{[%clk 0:00:16.9]} 46. Bd3 {[%clk 0:00:21.2]} 46... Be6 {[%clk 0:00:17.4]} 47.
Bc2 {[%clk 0:00:21.7]} 47... Kg6 {[%clk 0:00:17.5]} 48. Bd3 {[%clk 0:00:21.8]}
48... g4 {[%clk 0:00:17.3]} 49. fxg4 {[%clk 0:00:16.9]} 49... Kg5 {[%clk
0:00:17.6]} 50. Nd5 {[%clk 0:00:13.9]} 50... Bxd5 {[%clk 0:00:16.4]} 51. exd5
{[%clk 0:00:14.8]} 51... Kf4 {[%clk 0:00:16]} 52. Be2 {[%clk 0:00:13]} 52... e4
{[%clk 0:00:14.4]} 53. Kd4 {[%clk 0:00:13]} 53... Re8 {[%clk 0:00:10.7]} 54. d6
{[%clk 0:00:12.7]} 54... Kg3 {[%clk 0:00:11]} 55. c5 {[%clk 0:00:10.4]} 55...
Kf2 {[%clk 0:00:09.9]} 56. Bd1 {[%clk 0:00:09]} 56... e3 {[%clk 0:00:10.4]} 57.
Kd5 {[%clk 0:00:07.3]} 57... Kxg2 {[%clk 0:00:09.5]} 58. d7 {[%clk 0:00:05.4]}
58... Rd8 {[%clk 0:00:09.2]} 59. Kd6 {[%clk 0:00:06.2]} 59... Kxh3 {[%clk
0:00:09.6]} 60. Kc7 {[%clk 0:00:06.6]} 60... Rxd7+ {[%clk 0:00:09.2]} 61. Kxd7
{[%clk 0:00:07.5]} 61... Kg3 {[%clk 0:00:09.9]} 62. Kc7 {[%clk 0:00:06.9]} 62...
h3 {[%clk 0:00:10.3]} 63. Kxb7 {[%clk 0:00:07.8]} 63... h2 {[%clk 0:00:10.8]}
64. c6 {[%clk 0:00:07.8]} 64... h1=Q {[%clk 0:00:10.8]} 65. Be2 {[%clk
0:00:08.2]} 65... Qg2 {[%clk 0:00:10.6]} 66. Bc4 {[%clk 0:00:07.3]} 66... e2
{[%clk 0:00:10.4]} 67. Bxe2 {[%clk 0:00:07]} 67... Qxe2 {[%clk 0:00:11.3]} 68.
c7 {[%clk 0:00:07.9]} 68... Qe4+ {[%clk 0:00:11.4]} 69. Kb8 {[%clk 0:00:07.2]}
69... Qb4+ {[%clk 0:00:11.1]} 70. Ka8 {[%clk 0:00:07.7]} 70... Qc5 {[%clk
0:00:11.1]} 71. Kb8 {[%clk 0:00:07.7]} 71... Qb4+ {[%clk 0:00:11.3]} 72. Ka8
{[%clk 0:00:08]} 72... Qxg4 {[%clk 0:00:11.5]} 73. Kb7 {[%clk 0:00:05.5]} 73...
Qb4+ {[%clk 0:00:11.3]} 74. Ka8 {[%clk 0:00:05.8]} 74... Qc5 {[%clk 0:00:11]}
75. Kb8 {[%clk 0:00:06.2]} 75... Qd5 {[%clk 0:00:11.5]} 76. c8=Q {[%clk
0:00:05.7]} 76... Qxb3+ {[%clk 0:00:11.8]} 77. Ka7 {[%clk 0:00:03.2]} 77... Qxa4
{[%clk 0:00:10.8]} 78. Qf5 {[%clk 0:00:03.6]} 78... Qd4+ {[%clk 0:00:10.2]} 79.
Ka6 {[%clk 0:00:04]} 79... a4 {[%clk 0:00:10.8]} 80. Qg6+ {[%clk 0:00:04]} 80...
Kf3 {[%clk 0:00:10.9]} 81. Qf5+ {[%clk 0:00:04.1]} 81... Ke3 {[%clk 0:00:10.9]}
82. Qh3+ {[%clk 0:00:03.8]} 82... Kd2 {[%clk 0:00:10.7]} 83. Qg2+ {[%clk
0:00:04.7]} 83... Kc3 {[%clk 0:00:10.8]} 84. Qf3+ {[%clk 0:00:04.8]} 84... Qd3+
{[%clk 0:00:10.8]} 85. Qxd3+ {[%clk 0:00:04.9]} 85... Kxd3 {[%clk 0:00:11.7]}
0-1